fUST/lending_fUST_20240121
["ID","MTS","AMOUNT","RATE_DAILY","PERIOD"]
[312371265,1705840245161,-500.0,0.00028219,2]
[312371267,1705840245170,-1087.03,0.00028219,2]
[312371269,1705840245178,-500.0,0.00028219,2]
[312371271,1705840245188,-652.2,0.00028219,2]
[312371273,1705840245197,-237.28341523,0.00028219,2]
[312371275,1705840245206,-500.0,0.00028219,2]
[312371277,1705840245215,-500.0,0.00028219,2]
[312371279,1705840245224,-500.0,0.00028219,2]
[312371281,1705840245234,-7546.36,0.00028219,2]
[312371283,1705840245242,-1011.81,0.00028219,2]
[312371285,1705840245251,-500.0,0.00028219,2]
[312371286,1705840245260,-2594.81,0.00028219,2]
[312371288,1705840245268,-880.16,0.00028219,2]
[312371290,1705840245277,-4983.37,0.00028219,2]
[312371292,1705840245286,-594.64113773,0.00028219,2]
[312371294,1705840245295,-513.67630962,0.00028219,2]
[312371296,1705840245303,-500.0,0.00028219,2]
[312371297,1705840245311,-500.0,0.00028219,2]
[312371299,1705840245320,-6897.52,0.00028219,2]
[312371301,1705840245329,-516.43736873,0.00028219,2]
[312371303,1705840245338,-500.0,0.00028219,2]
[312371305,1705840245347,-4199.62,0.00028219,2]
[312371307,1705840245356,-1073.8,0.00028219,2]
[312371309,1705840245364,-6888.73,0.00028219,2]
[312371311,1705840245373,-1239.46,0.00028219,2]
[312371313,1705840245382,-1032.53,0.00028219,2]
[312371315,1705840245391,-11828.99,0.00028219,2]
[312371317,1705840245400,-1691.9,0.00028219,2]
[312371319,1705840245409,-406.48648431,0.00028219,2]
[312371321,1705840245418,-374.03606538,0.00028219,2]
[312371323,1705840245427,-500.0,0.00028219,2]
[312371325,1705840245437,-500.0,0.00028219,2]
[312371327,1705840245445,-500.0,0.00028219,2]
[312371329,1705840245455,-500.0,0.00028219,2]
[312371342,1705840245564,-1479.67,0.00028219,2]
[312371344,1705840245573,-1932.46,0.00028219,2]
[312371346,1705840245582,-500.0,0.00028219,2]
[312371348,1705840245590,-500.0,0.00028219,2]
[312371349,1705840245599,-500.0,0.00028219,2]
[312371351,1705840245608,-500.0,0.00028219,2]
[312371353,1705840245617,-500.0,0.00028219,2]
[312371355,1705840245626,-973.14,0.00028219,2]
[312371357,1705840245635,-1088.96,0.00028219,2]
[312371359,1705840245644,-500.0,0.00028219,2]
[312371361,1705840245653,-500.0,0.00028219,2]
[312371364,1705840245663,-500.0,0.00028219,2]
[312371366,1705840245672,-500.0,0.00028219,2]
[312371367,1705840245682,-500.0,0.00028219,2]
[312371368,1705840245691,-1000.0,0.00028219,2]
[312371369,1705840245700,-695.17,0.00028219,2]
[312371370,1705840245709,-500.0,0.00028219,2]
[312371371,1705840245717,-579.18,0.00028219,2]
[312371372,1705840245726,-532.99,0.00028219,2]
[312371373,1705840245735,-689.35,0.00028219,2]
[312371374,1705840245745,-753.26,0.00028219,2]
[312371375,1705840245754,-514.32,0.00028219,2]
[312371376,1705840245763,-2260.2,0.00028219,2]
[312371377,1705840245772,-500.0,0.00028219,2]
[312371378,1705840245782,-500.0,0.00028219,2]
[312371379,1705840245791,-500.0,0.00028219,2]
[312371380,1705840245800,-1240.77,0.00028219,2]
[312371381,1705840245809,-646.96,0.00028219,2]
[312371382,1705840245819,-500.0,0.00028219,2]
[312371383,1705840245827,-672.79,0.00028219,2]
[312371384,1705840245837,-264.98649804,0.00028423,2]
[312371385,1705840245847,-151.0,0.00028493,2]
[312371386,1705840245856,-151.0,0.00028493,2]
[312371388,1705840245865,-1000.0,0.00028493,2]
[312371390,1705840245875,-1000.0,0.00028493,2]
[312371392,1705840245887,-515.38949,0.00028493,2]
[312371394,1705840245896,-515.38949,0.00028493,2]
[312371396,1705840245905,-151.0,0.00028493,2]
[312371398,1705840245914,-151.0,0.00028493,2]
[312371400,1705840245924,-468.92844637,0.00028493,2]
[312371402,1705840245933,-500.0,0.00028493,2]
[312371404,1705840245943,-618.6,0.00028493,2]
[312371406,1705840245952,-500.0,0.00028493,2]
[312371408,1705840245963,-500.0,0.00028493,2]
[312371410,1705840245972,-500.0,0.00028493,2]
[312371412,1705840245981,-503.44,0.00028493,2]
[312371414,1705840245990,-500.0,0.00028493,2]
[312371416,1705840245999,-500.0,0.00028493,2]
[312371418,1705840246008,-500.0,0.00028493,2]
[312371420,1705840246017,-500.0,0.00028493,2]
[312371422,1705840246026,-500.0,0.00028493,2]
[312371424,1705840246035,-519.56,0.00028493,2]
[312371426,1705840246044,-500.0,0.00028493,2]
[312371428,1705840246054,-500.0,0.00028493,2]
[312371430,1705840246062,-916.26,0.00028493,2]
[312371432,1705840246071,-500.0,0.00028493,2]
[312371434,1705840246081,-500.0,0.00028493,2]
[312371436,1705840246090,-500.0,0.00028493,2]
[312371438,1705840246099,-500.0,0.00028493,2]
[312371440,1705840246108,-526.81045718,0.00028493,2]
[312371442,1705840246117,-387.69861089,0.00028493,2]
[312371443,1705840246126,-500.0,0.00028493,2]
[312371445,1705840246135,-500.0,0.00028493,2]
[312371447,1705840246144,-500.0,0.00028493,2]
[312371450,1705840246154,-704.47,0.00028493,2]
[312371451,1705840246163,-500.0,0.00028493,2]
[312371453,1705840246172,-500.0,0.00028493,2]
[312371456,1705840246181,-1541.91,0.00028493,2]
[312371458,1705840246191,-500.0,0.00028493,2]
[312371460,1705840246200,-500.0,0.00028493,2]
[312371461,1705840246209,-2181.38,0.00028493,2]
[312371463,1705840246218,-540.66,0.00028493,2]
[312371465,1705840246227,-500.0,0.00028493,2]
[312371467,1705840246236,-500.0,0.00028493,2]
[312371469,1705840246246,-500.0,0.00028493,2]
[312371471,1705840246255,-500.0,0.00028493,2]
[312371473,1705840246264,-500.0,0.00028493,2]
[312371475,1705840246273,-635.76,0.00028493,2]
[312371477,1705840246282,-500.0,0.00028493,2]
[312371479,1705840246292,-500.0,0.00028493,2]
[312371482,1705840246301,-803.85,0.00028493,2]
[312371484,1705840246310,-1170.33,0.00028493,2]
[312371486,1705840246319,-543.14,0.00028493,2]
[312371487,1705840246329,-500.0,0.00028493,2]
[312371490,1705840246338,-500.0,0.00028493,2]
[312371492,1705840246347,-958.48,0.00028493,2]
[312371493,1705840246356,-500.0,0.00028493,2]
[312371495,1705840246366,-500.0,0.00028493,2]
[312371498,1705840246375,-1633.95,0.00028493,2]
[312371499,1705840246385,-500.0,0.00028493,2]
[312371501,1705840246394,-500.0,0.00028493,2]
[312371503,1705840246403,-500.0,0.00028493,2]
[312371505,1705840246412,-1728.01,0.00028493,2]
[312371507,1705840246424,-952.8,0.00028493,2]
[312371509,1705840246432,-500.0,0.00028493,2]
[312371511,1705840246441,-536.42,0.00028493,2]
[312371513,1705840246450,-526.57075021,0.00028493,2]
[312371515,1705840246459,-500.0,0.00028493,2]
[312371517,1705840246468,-952.24,0.00028493,2]
[312371519,1705840246477,-861.77,0.00028493,2]
[312371521,1705840246486,-4977.87,0.00028493,2]
[312371523,1705840246495,-500.0,0.00028493,2]
[312371525,1705840246504,-500.0,0.00028493,2]
[312371527,1705840246513,-16015.78,0.00028493,2]
[312371529,1705840246522,-500.0,0.00028493,2]
[312371531,1705840246531,-500.0,0.00028493,2]
[312371533,1705840246540,-1087.03,0.00028493,2]
[312371535,1705840246549,-500.0,0.00028493,2]
[312371537,1705840246558,-652.2,0.00028493,2]
[312371539,1705840246567,-500.0,0.00028493,2]
[312371541,1705840246576,-500.0,0.00028493,2]
[312371543,1705840246585,-500.0,0.00028493,2]
[312371545,1705840246593,-7546.36,0.00028493,2]
[312371547,1705840246602,-1011.81,0.00028493,2]
[312371549,1705840246611,-500.0,0.00028493,2]
[312371551,1705840246621,-2594.81,0.00028493,2]
[312371553,1705840246630,-880.16,0.00028493,2]
[312371556,1705840246639,-4983.37,0.00028493,2]
[312371558,1705840246648,-500.0,0.00028493,2]
[312371559,1705840246657,-500.0,0.00028493,2]
[312371561,1705840246667,-6897.52,0.00028493,2]
[312371564,1705840246676,-500.0,0.00028493,2]
[312371566,1705840246686,-4199.62,0.00028493,2]
[312371567,1705840246695,-1073.8,0.00028493,2]
[312371570,1705840246704,-6888.73,0.00028493,2]
[312371572,1705840246713,-1239.46,0.00028493,2]
[312371574,1705840246722,-1032.53,0.00028493,2]
[312371575,1705840246731,-11828.99,0.00028493,2]
[312371577,1705840246740,-1691.9,0.00028493,2]
[312371579,1705840246749,-500.0,0.00028493,2]
[312371581,1705840246758,-500.0,0.00028493,2]
[312371583,1705840246767,-579.61062412,0.00028493,2]
[312371585,1705840246776,-500.0,0.00028493,2]
[312371587,1705840246785,-1479.67,0.00028493,2]
[312371589,1705840246794,-1932.46,0.00028493,2]
[312371591,1705840246803,-500.0,0.00028493,2]
[312371593,1705840246812,-500.0,0.00028493,2]
[312371595,1705840246822,-500.0,0.00028493,2]
[312371597,1705840246831,-500.0,0.00028493,2]
[312371599,1705840246840,-500.0,0.00028493,2]
[312371601,1705840246850,-973.14,0.00028493,2]
[312371603,1705840246858,-1088.96,0.00028493,2]
[312371605,1705840246867,-500.0,0.00028493,2]
[312371607,1705840246880,-500.0,0.00028493,2]
[312371609,1705840246889,-500.0,0.00028493,2]
[312371611,1705840246898,-500.0,0.00028493,2]
[312371613,1705840246907,-500.0,0.00028493,2]
[312371615,1705840246917,-1000.0,0.00028493,2]
[312371617,1705840246926,-695.17,0.00028493,2]
[312371619,1705840246935,-500.0,0.00028493,2]
[312371621,1705840246944,-579.18,0.00028493,2]
[312371624,1705840246954,-532.99,0.00028493,2]
[312371626,1705840246966,-689.35,0.00028493,2]
[312371628,1705840246976,-753.26,0.00028493,2]
[312371629,1705840246985,-514.32,0.00028493,2]
[312371632,1705840246995,-2260.2,0.00028493,2]
[312371634,1705840247004,-500.0,0.00028493,2]
[312371635,1705840247014,-500.0,0.00028493,2]
[312371637,1705840247023,-500.0,0.00028493,2]
[312371640,1705840247033,-1240.77,0.00028493,2]
[312371642,1705840247042,-646.96,0.00028493,2]
[312371644,1705840247051,-500.0,0.00028493,2]
[312371646,1705840247061,-672.79,0.00028493,2]
[312371648,1705840247070,-151.0,0.00028506,2]
[312371650,1705840247079,-620.19881762,0.00028644,2]
[312371651,1705840247089,-500.0,0.00028767,2]
[312371653,1705840247098,-618.6,0.00028767,2]
[312371656,1705840247107,-500.0,0.00028767,2]
[312371657,1705840247117,-330.07898599,0.00028767,2]
[312371659,1705840247126,-500.0,0.00028767,2]
[312371661,1705840247135,-503.44,0.00028767,2]
[312371663,1705840247144,-500.0,0.00028767,2]
[312371666,1705840247153,-500.0,0.00028767,2]
[312371668,1705840247162,-500.0,0.00028767,2]
[312371669,1705840247171,-500.0,0.00028767,2]
[312371671,1705840247181,-500.0,0.00028767,2]
[312371673,1705840247191,-519.56,0.00028767,2]
[312371676,1705840247201,-500.0,0.00028767,2]
[312371678,1705840247210,-500.0,0.00028767,2]
[312371680,1705840247219,-916.26,0.00028767,2]
[312371682,1705840247227,-500.0,0.00028767,2]
[312371683,1705840247236,-500.0,0.00028767,2]
[312371685,1705840247245,-500.0,0.00028767,2]
[312371687,1705840247255,-500.0,0.00028767,2]
[312371689,1705840247263,-500.0,0.00028767,2]
[312371691,1705840247272,-500.0,0.00028767,2]
[312371693,1705840247281,-500.0,0.00028767,2]
[312371695,1705840247291,-704.47,0.00028767,2]
[312371697,1705840247299,-500.0,0.00028767,2]
[312371699,1705840247309,-500.0,0.00028767,2]
[312371702,1705840247318,-500.0,0.00028767,2]
[312371704,1705840247327,-1541.91,0.00028767,2]
[312371705,1705840247337,-500.0,0.00028767,2]
[312371707,1705840247346,-2181.38,0.00028767,2]
[312371710,1705840247356,-540.66,0.00028767,2]
[312371711,1705840247365,-500.0,0.00028767,2]
[312371714,1705840247374,-500.0,0.00028767,2]
[312371715,1705840247383,-500.0,0.00028767,2]
[312371717,1705840247393,-500.0,0.00028767,2]
[312371719,1705840247402,-500.0,0.00028767,2]
[312371722,1705840247411,-155.0,0.00028767,2]
[312371724,1705840247424,-635.76,0.00028767,2]
[312371726,1705840247433,-500.0,0.00028767,2]
[312371728,1705840247442,-78.09749333,0.00028767,2]
[312371739,1705840247538,-421.90250667,0.00028767,2]
[312371741,1705840247548,-803.85,0.00028767,2]
[312371744,1705840247557,-1170.33,0.00028767,2]
[312371746,1705840247567,-543.14,0.00028767,2]
[312371748,1705840247576,-500.0,0.00028767,2]
[312371750,1705840247585,-500.0,0.00028767,2]
[312371752,1705840247594,-958.48,0.00028767,2]
[312371753,1705840247603,-500.0,0.00028767,2]
[312371755,1705840247612,-500.0,0.00028767,2]
[312371757,1705840247622,-1633.95,0.00028767,2]
[312371760,1705840247631,-500.0,0.00028767,2]
[312371761,1705840247640,-500.0,0.00028767,2]
[312371763,1705840247649,-500.0,0.00028767,2]
[312371765,1705840247658,-1728.01,0.00028767,2]
[312371767,1705840247667,-952.8,0.00028767,2]
[312371769,1705840247677,-500.0,0.00028767,2]
[312371771,1705840247685,-536.42,0.00028767,2]
[312371773,1705840247695,-952.24,0.00028767,2]
[312371775,1705840247704,-500.0,0.00028767,2]
[312371777,1705840247713,-861.77,0.00028767,2]
[312371779,1705840247722,-4977.87,0.00028767,2]
[312371781,1705840247731,-426.72018278,0.00028767,2]
[312371784,1705840247741,-16015.78,0.00028767,2]
[312371785,1705840247750,-500.0,0.00028767,2]
[312371787,1705840247759,-500.0,0.00028767,2]
[312371790,1705840247768,-272.43799555,0.00028767,2]
[312371792,1705840247778,-1087.03,0.00028767,2]
[312371794,1705840247787,-500.0,0.00028767,2]
[312371796,1705840247796,-652.2,0.00028767,2]
[312371798,1705840247805,-5.069315,0.00028767,2]
[312372948,1705840288963,200.0,0.00030136,15]
[312372951,1705840334823,-154.7215013,0.00025889,4]
[312372953,1705840346387,5.2784987,0.00024656,4]
[312372955,1705840365278,-149.4430026,0.00024656,4]
[312372957,1705840380482,154.7215013,0.00024656,4]
[312372958,1705840398393,154.7215013,0.00024656,4]
[312372959,1705840418400,154.7215013,0.00024656,4]
[312372960,1705840434393,154.7215013,0.00024656,4]
[312372961,1705840452509,154.7215013,0.00024656,4]
[312372962,1705840468394,154.7215013,0.00024656,4]
[312372963,1705840488412,154.7215013,0.00024656,4]
[312372964,1705840506406,154.7215013,0.00024656,4]
[312372965,1705840522405,154.7215013,0.00024656,4]
[312372966,1705840540409,154.7215013,0.00024656,4]
[312372967,1705840556414,154.7215013,0.00024656,4]
[312372968,1705840582410,154.7215013,0.00024656,4]
[312372969,1705840589005,200.0,0.00030136,15]
[312372970,1705840598413,154.7215013,0.00024656,4]
[312372971,1705840618418,154.7215013,0.00024656,4]
[312372972,1705840636433,154.7215013,0.00024656,4]
[312372973,1705840656423,154.7215013,0.00024656,4]
[312372974,1705840672433,154.7215013,0.00023816,4]
[312372975,1705840688425,29.7344779,0.00023816,4]
[312372976,1705840888519,200.0,0.0002911,15]
[312372977,1705840898397,-154.7215013,0.00023813,4]
[312372978,1705840932667,-327.4401691,0.00023815,2]
[312372979,1705840956379,154.7215013,0.00023815,2]
[312372980,1705840970388,155.06157945,0.00023815,2]
[312372981,1705841107873,3968.10949626,0.00031,14]
[312372984,1705841188654,200.0,0.00028592,15]
[312372988,1705841222703,-154.7215013,0.00024654,4]
[312372989,1705841222723,-158.66775845,0.00024655,2]
[312372990,1705841235078,-1652.7499464,0.00024655,2]
[312372991,1705841235098,-244.88923554,0.00024656,2]
[312372992,1705841235119,-171.775756,0.0002588,2]
[312372993,1705841235141,-1087.63057897,0.00025991,2]
[312372994,1705841239082,-165.52697522,0.00025991,2]
[312372995,1705841239103,-583.4227539,0.00025992,2]
[312372996,1705841239124,-1432.75724804,0.00025993,2]
[312372997,1705841241081,-1512.79521383,0.00025993,2]
[312373058,1705841432598,-154.7215013,0.00024656,4]
[312373060,1705841432607,-5629.2483721,0.00025993,2]
[312373235,1705841438835,-16325.19916603,0.00025993,2]
[312373237,1705841438844,-1258.25141167,0.00026393,2]
[312373239,1705841438854,-175.18966106,0.00026464,2]
[312373242,1705841438863,-555.24243185,0.00026464,2]
[312373244,1705841438872,-620.94565612,0.0002728,2]
[312373246,1705841438881,-2857.13,0.00027287,3]
[312373248,1705841438890,-2380.94,0.00027287,3]
[312373249,1705841438899,-710.08794834,0.00027295,2]
[312373250,1705841438907,-2902.69148187,0.00027296,2]
[312373251,1705841438917,-276000.0,0.00027297,2]
[312373252,1705841438926,-176.83895638,0.00027297,2]
[312373253,1705841438935,-264.98649804,0.00027395,2]
[312373254,1705841438944,-328.41896336,0.00027395,2]
[312373255,1705841438953,-256.58121259,0.00027396,2]
[312373256,1705841438962,-594.71433165,0.00027397,2]
[312373257,1705841438973,-503.33303702,0.00027397,2]
[312373258,1705841438981,-500.0,0.00027397,2]
[312373259,1705841438990,-500.0,0.00027397,2]
[312373260,1705841438999,-251.91583428,0.00027397,2]
[312373261,1705841439007,-500.0,0.00027397,2]
[312373262,1705841439017,-500.0,0.00027397,2]
[312373263,1705841439026,-500.0,0.00027397,2]
[312373264,1705841439034,-500.0,0.00027397,2]
[312373265,1705841439043,-500.0,0.00027397,2]
[312373266,1705841439052,-500.0,0.00027397,2]
[312373268,1705841439062,-500.0,0.00027397,2]
[312373269,1705841439071,-500.0,0.00027397,2]
[312373270,1705841439080,-500.0,0.00027397,2]
[312373271,1705841439088,-500.0,0.00027397,2]
[312373273,1705841439097,-500.0,0.00027397,2]
[312373275,1705841439107,-500.0,0.00027397,2]
[312373277,1705841439116,-500.0,0.00027397,2]
[312373279,1705841439125,-500.0,0.00027397,2]
[312373281,1705841439134,-500.0,0.00027397,2]
[312373283,1705841439143,-500.0,0.00027397,2]
[312373284,1705841439152,-500.0,0.00027397,2]
[312373286,1705841439161,-500.0,0.00027397,2]
[312373288,1705841439170,-500.0,0.00027397,2]
[312373290,1705841439179,-500.0,0.00027397,2]
[312373292,1705841439188,-500.0,0.00027397,2]
[312373294,1705841439197,-279.40130134,0.00027397,2]
[312373296,1705841439207,-500.0,0.00027397,2]
[312373298,1705841439215,-500.0,0.00027397,2]
[312373300,1705841439225,-560.41922832,0.00027397,2]
[312373302,1705841439234,-500.0,0.00027397,2]
[312373304,1705841439244,-500.0,0.00027397,2]
[312373306,1705841439255,-500.0,0.00027397,2]
[312373308,1705841439264,-500.0,0.00027397,2]
[312373310,1705841439273,-500.0,0.00027397,2]
[312373312,1705841439282,-523.9,0.00027397,2]
[312373314,1705841439292,-500.0,0.00027397,2]
[312373316,1705841439301,-500.0,0.00027397,2]
[312373318,1705841439309,-1000.0,0.00027397,2]
[312373320,1705841439319,-500.0,0.00027397,2]
[312373322,1705841439328,-500.0,0.00027397,2]
[312373324,1705841439338,-603.18,0.00027397,2]
[312373325,1705841439347,-1758.32,0.00027397,2]
[312373327,1705841439356,-669.87,0.00027397,2]
[312373329,1705841439366,-500.0,0.00027397,2]
[312373331,1705841439375,-500.0,0.00027397,2]
[312373333,1705841439384,-500.0,0.00027397,2]
[312373334,1705841439394,-500.0,0.00027397,2]
[312373336,1705841439403,-798.73,0.00027397,2]
[312373337,1705841439412,-500.0,0.00027397,2]
[312373338,1705841439421,-500.0,0.00027397,2]
[312373340,1705841439432,-500.0,0.00027397,2]
[312373341,1705841439442,-500.0,0.00027397,2]
[312373347,1705841439600,-500.0,0.00027397,2]
[312373348,1705841439611,-1000.0,0.00027397,2]
[312373349,1705841439620,-793.54,0.00027397,2]
[312373350,1705841439631,-500.0,0.00027397,2]
[312373351,1705841439640,-500.0,0.00027397,2]
[312373352,1705841439649,-503.3727828,0.00027397,2]
[312373353,1705841439658,-501.06,0.00027397,2]
[312373354,1705841439668,-500.0,0.00027397,2]
[312373355,1705841439677,-500.0,0.00027397,2]
[312373356,1705841439687,-500.0,0.00027397,2]
[312373357,1705841439696,-295.9326631,0.00027397,2]
[312373358,1705841439705,-903.46,0.00027397,2]
[312373359,1705841439714,-500.0,0.00027397,2]
[312373360,1705841439726,-516.43736873,0.00027397,2]
[312373361,1705841439735,-500.0,0.00027397,2]
[312373362,1705841439744,-374.03606538,0.00027397,2]
[312373363,1705841439753,-155.0,0.00027397,2]
[312373364,1705841439762,-500.0,0.00027397,2]
[312373365,1705841439772,-500.0,0.00027397,2]
[312373366,1705841439781,-500.0,0.00027397,2]
[312373367,1705841439790,-500.0,0.00027397,2]
[312373368,1705841439800,-500.0,0.00027397,2]
[312373369,1705841439810,-500.0,0.00027397,2]
[312373370,1705841439819,-453.82432863,0.00027397,2]
[312373371,1705841439828,-500.0,0.00027397,2]
[312373372,1705841439837,-500.0,0.00027397,2]
[312373373,1705841439846,-604.14,0.00027397,2]
[312373374,1705841439855,-500.0,0.00027397,2]
[312373375,1705841439865,-500.0,0.00027397,2]
[312373376,1705841439874,-500.0,0.00027397,2]
[312373377,1705841439883,-751.39,0.00027397,2]
[312373378,1705841439892,-500.0,0.00027397,2]
[312373379,1705841439901,-272.94732908,0.00027397,2]
[312373380,1705841439910,-500.0,0.00027397,2]
[312373381,1705841439919,-500.0,0.00027397,2]
[312373382,1705841439928,-346.71546179,0.00027397,2]
[312373383,1705841439937,-500.0,0.00027397,2]
[312373384,1705841439946,-500.0,0.00027397,2]
[312373385,1705841439955,-500.0,0.00027397,2]
[312373386,1705841439964,-1549.47,0.00027397,2]
[312373387,1705841439973,-500.0,0.00027397,2]
[312373388,1705841439983,-645.0704985,0.00027397,2]
[312373389,1705841439992,-500.0,0.00027397,2]
[312373390,1705841440002,-500.0,0.00027397,2]
[312373391,1705841440011,-593.04,0.00027397,2]
[312373392,1705841440021,-2078.69,0.00027397,2]
[312373394,1705841440030,-500.0,0.00027397,2]
[312373395,1705841440040,-500.0,0.00027397,2]
[312373396,1705841440050,-500.0,0.00027397,2]
[312373397,1705841440059,-500.0,0.00027397,2]
[312373398,1705841440067,-2071.85,0.00027397,2]
[312373399,1705841440076,-637.24,0.00027397,2]
[312373400,1705841440085,-500.0,0.00027397,2]
[312373401,1705841440094,-1065.23,0.00027397,2]
[312373402,1705841440104,-616.73,0.00027397,2]
[312373403,1705841440113,-530.91,0.00027397,2]
[312373404,1705841440123,-500.0,0.00027397,2]
[312373405,1705841440131,-19852.34,0.00027397,2]
[312373406,1705841440141,-892.04,0.00027397,2]
[312373407,1705841440150,-500.0,0.00027397,2]
[312373408,1705841440159,-690.49,0.00027397,2]
[312373409,1705841440168,-500.0,0.00027397,2]
[312373410,1705841440177,-500.0,0.00027397,2]
[312373411,1705841440187,-500.0,0.00027397,2]
[312373412,1705841440198,-500.0,0.00027397,2]
[312373413,1705841440207,-500.0,0.00027397,2]
[312373414,1705841440216,-1577.23,0.00027397,2]
[312373415,1705841440225,-500.0,0.00027397,2]
[312373416,1705841440235,-500.0,0.00027397,2]
[312373417,1705841440244,-4753.79,0.00027397,2]
[312373418,1705841440254,-1494.61,0.00027397,2]
[312373419,1705841440266,-270.22224209,0.00027397,2]
[312373420,1705841440276,-500.0,0.00027397,2]
[312373421,1705841440286,-555.83,0.00027397,2]
[312373422,1705841440295,-1054.35,0.00027397,2]
[312373423,1705841440308,-528.38216131,0.00027397,2]
[312373424,1705841440317,-500.0,0.00027397,2]
[312373425,1705841440327,-500.0,0.00027397,2]
[312373426,1705841440337,-11662.09,0.00027397,2]
[312373427,1705841440346,-754.05,0.00027397,2]
[312373428,1705841440355,-500.0,0.00027397,2]
[312373429,1705841440364,-951.15,0.00027397,2]
[312373430,1705841440374,-6865.67,0.00027397,2]
[312373431,1705841440383,-980.23,0.00027397,2]
[312373432,1705841440392,-500.0,0.00027397,2]
[312373433,1705841440401,-6917.5,0.00027397,2]
[312373434,1705841440411,-500.0,0.00027397,2]
[312373435,1705841440420,-628.4,0.00027397,2]
[312373436,1705841440430,-965.12,0.00027397,2]
[312373437,1705841440439,-2378.58,0.00027397,2]
[312373438,1705841440448,-1686.24,0.00027397,2]
[312373439,1705841440457,-503.30082423,0.00027397,2]
[312373440,1705841440466,-500.0,0.00027397,2]
[312373441,1705841440475,-500.0,0.00027397,2]
[312373442,1705841440485,-500.0,0.00027397,2]
[312373443,1705841440494,-500.0,0.00027397,2]
[312373444,1705841440503,-500.0,0.00027397,2]
[312373445,1705841440513,-500.0,0.00027397,2]
[312373446,1705841440522,-500.0,0.00027397,2]
[312373447,1705841440531,-4753.42,0.00027397,2]
[312373448,1705841440540,-500.0,0.00027397,2]
[312373449,1705841440550,-993.28,0.00027397,2]
[312373450,1705841440559,-263.76446856,0.00027397,2]
[312373451,1705841440569,-500.0,0.00027397,2]
[312373452,1705841440578,-6579.26,0.00027397,2]
[312373453,1705841440587,-3849.65,0.00027397,2]
[312373454,1705841440596,-579.56324903,0.00027397,2]
[312373455,1705841440605,-494.7940667,0.00027397,2]
[312373456,1705841440614,-500.0,0.00027397,2]
[312373457,1705841440623,-500.0,0.00027397,2]
[312373458,1705841440632,-500.0,0.00027397,2]
[312373459,1705841440642,-1602.91,0.00027397,2]
[312373460,1705841440651,-946.25,0.00027397,2]
[312373461,1705841440660,-500.0,0.00027397,2]
[312373462,1705841440670,-500.0,0.00027397,2]
[312373463,1705841440679,-500.0,0.00027397,2]
[312373465,1705841440688,-500.0,0.00027397,2]
[312373467,1705841440697,-500.0,0.00027397,2]
[312373469,1705841440708,-1137.37,0.00027397,2]
[312373471,1705841440717,-500.0,0.00027397,2]
[312373473,1705841440726,-998.21,0.00027397,2]
[312373475,1705841440735,-500.0,0.00027397,2]
[312373477,1705841440745,-593.63,0.00027397,2]